Cogmind - Beta 16 @@@ ROGUE MODE // 2025.10.21 @ 22:22:06 Player: jumpy Result: Destroyed by Y-45 Defender with Beam Rifle Performance ------------- Evolutions (2) 1000 Regions Visited (4) 800 Robots Destroyed (25) 125 Value Destroyed (586) 586 Prototype IDs (3) 60 Alien Tech Used (0) 0 Bonus (0) 0 TOTAL SCORE: 2571 Bonus ------- None Cogmind --------- Core Integrity 0/550 Matter 300/300 Energy 99/100 System Corruption 0% Temperature Cool (9) Movement Core (50) Location -8/Materials Parts ------- > --- POWER (1) -------- (None) > --- PROPULSION (4) --- (None) > --- UTILITY (4) ------ (None) > --- WEAPON (2) ------- (None) > --- INVENTORY (5) ---- Improved Hover Unit Gravmag System Gravmag System Gravmag System Gravmag System Peak State ------------ > --- POWER ------------ Improved Ion Engine > --- PROPULSION ------- Aluminum Leg Aluminum Leg Aluminum Leg > --- UTILITY ---------- Medium Storage Unit Seismic Detector Light Armor Plating > --- WEAPON ----------- Improved EM Shotgun Shotgun > --- INVENTORY -------- Light Ion Engine Wheel Wheel Improved Hover Unit Improved Terrain Scanner Seismic Detector Light Assault Rifle Shotgun Mining Laser [Rating: 14] Favorites ----------- Power Ion Engine Engine Ion Engine Propulsion Aluminum Leg Leg Aluminum Leg Utility Seismic Detector Device Seismic Detector Storage Medium Storage Unit Protection Light Armor Plating Weapon Assault Rifle Energy Gun Medium Laser Energy Cannon Beam Cannon Ballistic Gun Assault Rifle Impact Weapon Great Maul Build | -11 -10 -9 -9 -8 ------- Run | Yrd Mat Mat Min Mat Slots Evolved 4 | . . 2 . 2 Power . | . . . . . Propulsion 2 | . . 1 . 1 Utility 2 | . . 1 . 1 Weapon . | . . . . . Parts Attached 22 | 7 2 10 . 3 Power 3 | 1 . 1 . 1 Engine 3 | 1 . 1 . 1 Core . | . . . . . Reactor . | . . . . . Propulsion 4 | 2 . 2 . . Treads . | . . . . . Leg 4 | 2 . 2 . . Wheel . | . . . . . Hover . | . . . . . Flight . | . . . . . Utility 5 | 2 1 1 . 1 Device 1 | 1 . . . . Storage 2 | 1 1 . . . Processor . | . . . . . Hackware . | . . . . . Protection 2 | . . 1 . 1 Artifact . | . . . . . Weapon 10 | 2 1 6 . 1 Energy Gun 2 | . 1 1 . . Energy Cannon 2 | . . 2 . . Ballistic Gun 5 | 2 . 3 . . Ballistic Cannon . | . . . . . Launcher . | . . . . . Special Weapon . | . . . . . Impact Weapon 1 | . . . . 1 Slashing Weapon . | . . . . . Piercing Weapon . | . . . . . Special Melee Weapon . | . . . . . Unidentified Prototypes 1 | . . 1 . . Parts Lost 8 | . . 1 . 7 Power 2 | . . . . 2 Propulsion 3 | . . 1 . 2 Utility 2 | . . . . 2 Weapon 1 | . . . . 1 Highest Loss Streak 5 | . . 1 . 5 To Critical Strikes . | . . . . . Average Backups 7 | 5 7 8 8 8 Power . | . 1 1 1 . Propulsion 3 | 1 2 2 3 5 Utility 1 | . 2 2 2 1 Weapon 1 | 1 2 2 2 . Tool/Special . | . . . . . Unused Backups 12 | . . 1 . 11 Power . | . . . . . Propulsion 7 | . . . . 7 Utility 3 | . . 1 . 2 Weapon 2 | . . . . 2 Tool/Special . | . . . . . Average Slot Usage (%) 79 | . 100 95 88 52 Engine 9 | . 14 11 11 6 Leg 23 | . 28 31 22 13 Device 9 | . 14 11 11 6 Storage 10 | . 14 11 11 6 Protection 6 | . . 8 11 4 Energy Gun 3 | . 2 7 . . Energy Cannon 5 | . . 1 22 8 Ballistic Gun 9 | . 25 12 . . Impact Weapon 2 | . . . . 5 Peak Build Rating 14 | 7 8 14 10 14 Average Rating 8 | 6 7 10 10 9 On Entrance 7 | . 7 8 10 10 Avg Prop Armor Cover (%) . | . . . . . Naked Turns 87 | . . . . 87 Heaviest Build 28 | 14 20 27 27 28 Greatest Support 30 | 20 20 30 20 20 Greatest Overweight (x) 2 | . . 1 1 2 Average Overweight (x) . | . . . 1 . Largest Inventory Capacity 10 | 8 10 10 10 10 Average Capacity 8 | 7 9 10 10 8 Most Carried 10 | 7 8 10 8 10 Average Carried 7 | 5 7 8 8 8 Final Capacity 10 | 8 10 10 10 5 Final Carried 8 | 7 8 8 8 5 Class Distribution -------------------- 82% | Mutant 17% | Scavenger-Mutant Dominant Class ---------------- Mutant | -10/Materials Scavenger-Mutant | -9/Materials Mutant | -9/Mines Mutant | -8/Materials Resources | -11 -10 -9 -9 -8 ----------- Run | Yrd Mat Mat Min Mat Matter Collected 767 | 448 52 163 30 74 Remotely . | . . . . . Salvage Created 833 | 287 100 282 23 141 Parts 48 | 30 4 11 2 1 Haulers Intercepted 1 | . . 1 . . Recyclers Shooed 1 | . 1 . . . Parts Field Recycled . | . . . . . Retrieved Matter . | . . . . . Parts Self-Destructed . | . . . . . Prevented . | . . . . . Parts Restored . | . . . . . Kills | -11 -10 -9 -9 -8 ------- Run | Yrd Mat Mat Min Mat Combat Hostiles Destroyed 12 | . 2 7 . 3 Guns 8 | . 2 6 . . Cannons 1 | . . . . 1 AOE 1 | . . 1 . . Classes Destroyed 6 | 3 1 2 . . Worker 2 | 1 . . 1 . Tunneler 9 | 9 . . . . Hauler 1 | . . 1 . . Recycler 1 | 1 . . . . Grunt 9 | . 2 5 . 2 Sentry 3 | . . 2 . 1 Best Kill Streak 5 | 3 1 5 1 2 Combat Bots Only 4 | . 1 4 . 2 Max Kills in Single Turn 1 | 1 1 1 1 1 Gunslinging . | . . . . . Exploded 1 | . . 1 . . Melee . | . . . . . Uniques/NPCs Destroyed . | . . . . . Combat | -11 -10 -9 -9 -8 -------- Run | Yrd Mat Mat Min Mat Hostile Shots Fired 173 | . 15 31 . 127 Missed 50 | . 6 9 . 35 Hits 123 | . 9 22 . 92 Projectile 123 | . 9 22 . 92 Critical Strikes 3 | . . . . 3 Damage Taken 1929 | . 117 485 . 1327 Core 654 | . 37 57 . 560 Absorbed by Shields . | . . . . . Core Remaining (%) 90 | 100 85 . 85 . Volleys Fired 101 | 46 14 21 1 19 Largest 2 | 2 2 2 2 1 Hottest 120 | 40 70 70 120 60 Shots Fired 183 | 92 28 42 2 19 Gun 162 | 92 28 42 . . Cannon 21 | . . . 2 19 Launcher . | . . . . . Special . | . . . . . Kinetic 148 | 92 27 29 . . Thermal 35 | . 1 13 2 19 Explosive . | . . . . . Electromagnetic . | . . . . . Robot Hit Streak 11 | 7 3 10 1 11 Robot Miss Streak 5 | 5 3 2 1 2 Penetration Max . | . . . . . Secondary Targets 1 | . . 1 . . Max Gunslinging Chain 1 | . . 1 . . Shots Hit Robots 118 | 50 14 32 1 21 Core Hits 44 | 18 5 17 1 3 Critical Kills 1 | 1 . . . . Critical Parts Destroyed 1 | . . . . 1 Critical Strikes 3 | 1 . 1 . 1 Burn 1 | . . 1 . . Destroy 1 | 1 . . . . Smash 1 | . . . . 1 Melee Attacks 10 | . . . . 10 Impact 10 | . . . . 10 Slashing . | . . . . . Piercing . | . . . . . Sneak Attacks . | . . . . . Combat Hostiles . | . . . . . Follow-up Attacks . | . . . . . Damage Inflicted 2309 | 531 149 1052 17 560 Guns 1121 | 531 149 441 . . Cannons 318 | . . . 17 301 Explosions 611 | . . 611 . . Melee 259 | . . . . 259 Ramming . | . . . . . Kinetic 968 | 531 136 301 . . Thermal 1082 | . 13 751 17 301 Explosive . | . . . . . Electromagnetic . | . . . . . Impact 259 | . . . . 259 Slashing . | . . . . . Piercing . | . . . . . Highest Corruption . | . . . . . Average Corruption . | . . . . . Corruption Purged . | . . . . . Corruption Blocked . | . . . . . Overload Shots . | . . . . . Overflow Damage 286 | . . 188 . 98 Projectiles 6 | . . . . 6 Explosions 188 | . . 188 . . Melee 92 | . . . . 92 Knockbacks 2 | . . . . 2 Impact 2 | . . . . 2 Kinetic . | . . . . . Secondary . | . . . . . Self-Inflicted Damage 184 | . . 184 . . Shots 2 | . . 2 . . Rammed . | . . . . . Targets Rammed . | . . . . . Kicked . | . . . . . Crushed . | . . . . . Highest Temperature 96 | . 9 96 63 92 Average Temperature 29 | . 7 29 34 33 Received Heat Transfer 837 | . 66 141 . 630 Siege Activations . | . . . . . Martial Activations . | . . . . . Shielding Activations . | . . . . . Robots Disrupted . | . . . . . Combat Hostiles . | . . . . . Robots Corrupted 2 | . . . . 2 Combat Hostiles 2 | . . . . 2 Parts Fried 3 | . . . . 3 Impact Corruptions 4 | . . . . 4 Robots Melted . | . . . . . Combat Hostiles . | . . . . . Parts Melted 2 | . . 1 . 1 Heat Transferred 1484 | . 37 781 37 629 Parts Sabotaged . | . . . . . Parts Stolen . | . . . . . Parts Stripped . | . . . . . Power Chain Reactions . | . . . . . Alert | -11 -10 -9 -9 -8 ------- Run | Yrd Mat Mat Min Mat Maximum Alert Level . | . . . . . Low Security (%) 100 | 100 100 100 100 100 Level 1 . | . . . . . Level 2 . | . . . . . Level 3 . | . . . . . Level 4 . | . . . . . Level 5 . | . . . . . High Security . | . . . . . Max Security . | . . . . . Peak Influence 154 | 5 40 154 45 75 Initial 45 | . . . 45 11 Average 18 | 1 12 39 35 17 Influence Increases 565 | 55 60 255 5 190 Destroy 0b10 Robot/C 240 | . 40 140 . 60 Destroy 0b10 Robot/NC 65 | 55 . 5 5 . Destroy Leader 62 | . 10 42 . 10 Successful Hack 10 | . 10 . . . Disable Machine 30 | . . 30 . . Destroy Structure 38 | . . 38 . . Lose Combat Pursuer 120 | . . . . 120 Influence Decreases 490 | 55 60 139 91 145 Entered New Map 90 | . . . 71 19 Time Decay 385 | 55 60 129 20 121 Lost Part 15 | . . 10 . 5 Squads Dispatched 5 | . . 2 . 3 Investigation . | . . . . . Extermination . | . . . . . Reinforcement 3 | . . 2 . 1 Assault . | . . . . . Garrison 2 | . . . . 2 Intercept . | . . . . . Searches Triggered . | . . . . . Construction Impeded . | . . . . . Haulers Reinforced . | . . . . . Active Scanning Responses . | . . . . . Cargo Convoy Interrupts . | . . . . . Stealth | -11 -10 -9 -9 -8 --------- Run | Yrd Mat Mat Min Mat Distress Signals 1 | . . 1 . . Communications Jammed . | . . . . . Distress Signals . | . . . . . Times Spotted 25 | . 5 9 . 11 Peak Tracking Total 6 | . 2 5 . 6 Tactical Retreats 4 | . . . . 4 Traps | -11 -10 -9 -9 -8 ------- Run | Yrd Mat Mat Min Mat Traps Triggered . | . . . . . Indirectly . | . . . . . Trap Hack Attempts . | . . . . . Triggered . | . . . . . Disarmed . | . . . . . Reprogrammed . | . . . . . Reused . | . . . . . Traps Extracted . | . . . . . Installed . | . . . . . Triggered . | . . . . . Machines | -11 -10 -9 -9 -8 ---------- Run | Yrd Mat Mat Min Mat Machines Disabled 2 | . . 2 . . Max in Single Turn 2 | . . 2 . . Machines Repaired . | . . . . . Machines Dismantled . | . . . . . Machines Sabotaged . | . . . . . Overloaded Fab Kills . | . . . . . Hacking | -11 -10 -9 -9 -8 --------- Run | Yrd Mat Mat Min Mat Machines Accessed 5 | . 3 1 . 1 Terminals 5 | . 3 1 . 1 Fabricators . | . . . . . Repair Stations . | . . . . . Recycling Units . | . . . . . Scanalyzers . | . . . . . Garrison Access . | . . . . . Total Hacks 13 | . 9 2 . 2 Successful 4 | . 3 1 . . Failed 9 | . 6 1 . 2 Catastrophic 1 | . . . . 1 Database Lockouts . | . . . . . Manual 4 | . 2 . . 2 Terminals 13 | . 9 2 . 2 Fabricators . | . . . . . Repair Stations . | . . . . . Recycling Units . | . . . . . Scanalyzers . | . . . . . Garrison Access . | . . . . . Terminal Hacks 4 | . 3 1 . . Prototype ID Bank 1 | . 1 . . . Locate Traps 1 | . 1 . . . Dispatch Records 1 | . . 1 . . Zone Layout 1 | . 1 . . . Fabricator Hacks . | . . . . . Repair Station Hacks . | . . . . . Recycling Unit Hacks . | . . . . . Scanalyzer . | . . . . . Garrison Access Hacks . | . . . . . Unauthorized Hacks . | . . . . . Terminals . | . . . . . Fabricators . | . . . . . Repair Stations . | . . . . . Recycling Units . | . . . . . Scanalyzers . | . . . . . Garrison Access . | . . . . . Data Cores Recovered . | . . . . . Used . | . . . . . Hacking Detections 4 | . 2 1 . 1 Full Trace Events . | . . . . . Feedback Events . | . . . . . Feedback Blocked . | . . . . . Robot Schematics Acquired . | . . . . . Robots Built . | . . . . . Authchips . | . . . . . Time . | . . . . . Total Robot Build Rating . | . . . . . Part Schematics Acquired . | . . . . . Parts Built . | . . . . . Authchips . | . . . . . Time . | . . . . . Total Part Build Rating . | . . . . . Part Studies Acquired . | . . . . . Parts Repaired . | . . . . . Time . | . . . . . Parts Recycled . | . . . . . Recycled Matter . | . . . . . Retrieved Matter . | . . . . . Retrieved Components . | . . . . . Parts Scanalyzed . | . . . . . Part Schematics Acquired . | . . . . . Parts Damaged . | . . . . . Bothacking | -11 -10 -9 -9 -8 ------------ Run | Yrd Mat Mat Min Mat Used RIF Installer . | . . . . . Robots Hacked . | . . . . . Non-combat . | . . . . . Combat . | . . . . . Robot Hacks Applied . | . . . . . Relay Couplers Released . | . . . . . Fabnet Peak Effective % . | . . . . . Robots Rewired . | . . . . . Allies Hacked . | . . . . . Hacks Repelled . | . . . . . Allies | -11 -10 -9 -9 -8 -------- Run | Yrd Mat Mat Min Mat Total Allies . | . . . . . Largest Group . | . . . . . Highest-Rated Group . | . . . . . Highest-Rated Ally . | . . . . . Total Orders . | . . . . . Ally Attacks . | . . . . . Total Damage . | . . . . . Kills . | . . . . . Allies Corrupted . | . . . . . Allies Melted . | . . . . . Intel | -11 -10 -9 -9 -8 ------- Run | Yrd Mat Mat Min Mat Active Infowar (turns) 1088 | 142 184 414 59 289 Seismic 1088 | 142 184 414 59 289 Robot Analysis Total . | . . . . . Derelict Logs Recovered 1 | . . . 1 . Drone Launches . | . . . . . Drone Recoveries . | . . . . . Exploration | -11 -10 -9 -9 -8 ------------- Run | Yrd Mat Mat Min Mat Turns Passed 1496 | 448 184 414 59 391 Spaces Moved 889 | 257 117 239 30 246 Core 157 | 9 . . . 148 Treads . | . . . . . Legs 732 | 248 117 239 30 98 Wheels . | . . . . . Hover . | . . . . . Flight . | . . . . . Fastest Speed 50 | 50 120 120 190 50 Average Speed 120 | 117 120 129 190 106 Slowest Speed 260 | 120 120 190 190 260 Overloaded Moves . | . . . . . Propulsion Burnouts . | . . . . . Robots Hopped . | . . . . . Potential Cave-ins . | . . . . . Cave-ins Triggered . | . . . . . Exploration Rate (%) 19 | 8 29 22 9 27 Regions Visited 4 Branch Regions 1 Pre-discovered Areas . | . . . . . Known Exits Taken . | . . . . . Unknown Exits Taken 4 | 1 1 1 1 . Scrap Searched . | . . . . . Spaces Dug . | . . . . . Terrain Destroyed 37 | . . 37 . . Melee . | . . . . . Projectile . | . . . . . AOE 37 | . . 37 . . Terrain Rammed . | . . . . . Walls Destroyed . | . . . . . Machines Disabled . | . . . . . Actions | -11 -10 -9 -9 -8 --------- Run | Yrd Mat Mat Min Mat Total 1122 | 316 134 302 30 340 Wait 67 | . . 20 . 47 Move 885 | 256 116 238 29 246 Hop . | . . . . . Pick Up 16 | 7 1 3 . 5 Fast Attach 11 | 7 . 3 . 1 Attach 4 | . . 3 . 1 Detach . | . . . . . Swap 10 | . 2 7 . 1 Drop 18 | . 1 7 . 10 Fire 101 | 46 14 21 1 19 Melee 10 | . . . . 10 Ram . | . . . . . Kick . | . . . . . Crush . | . . . . . Escape Stasis . | . . . . . Rewire . | . . . . . Trap . | . . . . . Miscellaneous . | . . . . . Route ------- -11/Scrapyard -10/Materials -9/Materials -9/Mines -8/Materials History --------- Turn | Location | Event 2 | -11/Scrapyard | Met Revision 17 4 | -11/Scrapyard | Discovered new exit (range 16) 449 | -11/Scrapyard | Entered Materials 450 | -10/Materials | Build established: Mutant 627 | -10/Materials | Discovered new exit (range 5) 633 | -10/Materials | Entered another Materials area 633 | -9/Materials | Evolved 2 slots: Propulsion x1, Utility x1 974 | -9/Materials | Discovered new exit (range 16) 1047 | -9/Materials | Entered Mines 1098 | -9/Mines | Discovered new exit (range 5) 1106 | -9/Mines | Entered Materials 1106 | -8/Materials | Evolved 2 slots: Propulsion x1, Utility x1 1385 | -8/Materials | Garrison activated, responded to threat 1413 | -8/Materials | Core integrity fell below 50% 1425 | -8/Materials | Core integrity fell below 20% 1436 | -8/Materials | Lost 5 parts (1p2n1u1w) 1497 | -8/Materials | Destroyed by Y-45 Defender with Beam Rifle Last Messages --------------- 01372_ Lgt. Ion Engine destroyed. 01385_ Y-45 Defender calls for garrison reinforcements. 01385_ ALERT: Activating Garrison Access M001. 01389_ Aluminum Leg destroyed. 01395_ Seismic Detector destroyed. 01396_ Beam Cannon destroyed. 01401_ Critical hit (Burn: +37). 01405_ Aluminum Leg destroyed. 01406_ Dropped Wheel. 01407_ Dropped Imp. Terrain Scanner. 01407_ Dropped Seismic Detector. 01408_ Dropped Mining Laser. 01408_ Dropped Med. Storage Unit. 01409_ Dropped Imp. Light Armor Plating. 01410_ Dropped Great Maul. 01415_ M-13 Machinist destroyed. 01415_ Critical hit (Burn: +37). 01460_ T-07 Excavator is excavating. 01474_ Connecting with Terminal... 01474_ Current location identified: Materials Map ----- +----------------------------------------------------+ | | | | | | | | | | | | | | | | | | | | | | | ???????????????????????????????????????????????? | | ???????????????????????????????????????????????? | | ???????????????????????????????????????????????? | | ???????????????????????????????????????????????? | | ???????????????????????????????????????????????? | | ???????????????????????????????????????????????? | | ???????????????????????????????????????????????? | | ???????????????????????????????????????????????? | | ???????????????????????????????????????????????? | | ??????????????######???????????????????????????? | | ?????????????##!!!!##??????????????????????????? | | ?????????????#! !#????####??????????????????? | | ?????????????# #????# #??????????????????? | | ?????????????## ####### ####+###???????????? | | ??????????????# @ #???????????? | | ??????????????# Y #???????????? | | ?????????????####+#########+##### #???????????? | | ?????????????# ^ #????? ???# #?????????? | | ?????????????# #????? ""???# ######## | | ?????????????#" #???? """??# | | ?????????????#T #???? S"??# | | ?????????????#" #???# ?## #########?? | | ?????????????# #???# ??# #?????????? | | ?????????????########???#######??# #?????????? | | ?????????????????????????????????# #?????????? | | ?????????????????????????????????# #?????????? | | ?????????????????????????????????# #?????????? | | ?????????????????????????????????# #?????????? | | ?????????????????????????????????# #?????????? | | ?????????????????????????????????# #?????????? | | ?????????????????????????????????# #?????????? | | ?????????????????????????????????# #?????????? | | ?????????????????????????????????# #?????????? | | ?????????????????????????????????# #?????????? | | ?????????????????????????????????+ +?????????? | | ?????????????????????????????????# #?????????? | | ?????????????????????????????????# #?????????? | | ?????????????????????????????????# #?????????? | | ?????????????????????????????????# ########### | +----------------------------------------------------+ Best States ------------- Heat Dissipation 31 Energy Generation 12 Energy Capacity 265 Matter Stores 300 Matter Capacity 300 Sight Range 16 Terrain Scan Density 10 Armor Coverage 150 Evasion (%) 55 Item Schematics ----------------- None Robot Schematics ------------------ None Fabricated ------------ Nothing Repaired ---------- Nothing Studied --------- None Alien Tech Used ----------------- None Achievements -------------- You Again Challenges ------------ None Game ------ Seed ArcsightGrenadeExtractor Manual? 0 Play Time 00:12:30 Cumulative 228.0 hours Start 2025.10.21 @ 22:10:09 End 2025.10.21 @ 22:22:06 Sessions 1 Manual Loads 0 Difficulty Rogue Special Mode None Game No. 533 Rogue 533 Adventurer 0 Explorer 0 Win Type - Total 13 Types 9/0/2/1/1/0/0/0/0/0 Lore% 78 Gallery% 68 Achievement% 44 Wizard Run 0 Options --------- Layout 0 ASCII 0 Keyboard 0 Movement Numpad Keybinds 0 Fullscreen 2 Font 18/Terminus Map View 76x50 Zoom Use 0% Tactical HUD 1 Map Filters NONE Filters SATURATION(100) Steam 1 RUN: e4a195d1-1732-4b39-b7dc-be33ec7b5734